[Event "CEZ Chess Trophy 2022"]
[Site "Prague"]
[Date "2022.05.31"]
[Round "1.1"]
[White "Navara, David"]
[Black "Narayanan.S.L"]
[Result "1-0"]
[ECO "C54"]
[WhiteElo "2682"]
[BlackElo "2662"]
[Annotator "TA"]
[PlyCount "61"]
[EventDate "2022.05.31"]
[EventType "match"]
[EventCountry "CZE"]
[SourceTitle "playchess.com"]
[Source "ChessBase"]
[SourceQuality "1"]
[TimeControl "900+10"]

{[%evp 13,61,51,52,28,30,18,16,0,1,0,24,24,16,22,19,11,17,21,68,0,48,0,73,76,58,54,162,142,150,139,137,19,200,204,359,350,340,351,889,870,879,860,1063,1045,1220,1179,1172,1069,1088,1102]} 1. e4 {[%emt 0:00:03]} e5 {[%emt 0:00:04]} 2. Nf3 {[%emt 0:00:07]} Nc6 {[%emt 0:00:04]} 3. Bc4 {[%emt 0:00:04]} Bc5 {[%emt 0:00:05]} 4. O-O {[%emt 0:00:21]} Nf6 {[%emt 0:00:05]} 5. d3 {[%emt 0:00:03]} O-O {[%emt 0:00:07]} 6. c3 {[%emt 0:01:00]} d5 {[%emt 0:00:06]} 7. exd5 {[%emt 0:00:05]} Nxd5 {[%emt 0:00:04]} 8. a4 {[%emt 0:00:37] C54: Giuoco Piano: 4 c3 Nf6, main lines with 5 d4 and 5 d3.} (8. Re1 $5 {[%cal Rb2b4]}) 8... a5 {[%emt 0:00:05]} 9. Re1 {[%emt 0:01:41]} Bg4 {[%emt 0:00:19]} 10. h3 {[%emt 0:02:24] The position is equal.} Bh5 {[%emt 0:00:05]} 11. Nbd2 {[%emt 0:00:04]} Nb6 {[%emt 0:00:09]} 12. Bb5 {[%emt 0:00:21]} Bd6 {[%emt 0:00:37]} 13. Ne4 $36 {[%emt 0:00:16][%mdl 2048] White has good play.} f5 {[%emt 0:01:31]} 14. Ng3 {[%emt 0:00:04]} Bxf3 {[%emt 0:00:13]} 15. Qxf3 {[%emt 0:00:04]} Qd7 {[%emt 0:00:33] [#]} (15... Ne7 $11) 16. b3 $146 {[%emt 0:02:03]} (16. Nf1 $14) ({Predecessor:} 16. Bd2 Rae8 17. Rad1 Kh8 18. Nf1 e4 19. dxe4 fxe4 20. Qe2 Qf7 21. Be3 Bf4 22. Bxb6 cxb6 {0-1 (39) Rangel,D (2207)-Prraneeth,V (2417) Chess.com INT 2022}) 16... Rae8 {[%emt 0:01:14]} (16... Qe6 $11) 17. b4 {[%emt 0:02:44]} (17. Bd2 $14) 17... e4 {[%emt 0:04:04]} (17... axb4 $11 {remains equal.} 18. a5 e4 19. dxe4 f4) 18. dxe4 $16 {[%emt 0:00:35]} fxe4 {[%emt 0:01:18]} 19. Qg4 {[%emt 0:00:12]} Qf7 {[%emt 0:02:28]} (19... Qxg4 $14 20. hxg4 Be5) 20. Be3 $18 {[%emt 0:00:09]} Nd5 {[%emt 0:04:25]} 21. Nxe4 {[%emt 0:00:48]} axb4 {[%emt 0:00:09]} 22. Bc4 {[%emt 0:04:05]} ({Better is} 22. Nxd6 $16 cxd6 23. Bxc6 bxc6 24. cxb4) 22... Kh8 $2 {[%emt 0:00:48] A mistake that costs the game.} ({Less strong is} 22... bxc3 23. Nxd6 cxd6 24. Bd4 $18) (22... Ne5 $1 $11 23. Nxd6 cxd6 24. Bxd5 Qxd5) 23. Ng5 {[%emt 0:00:26] Dancing on a razor blade.} Qf5 {[%emt 0:00:09] [#]} (23... Qg8 {keeps fighting.}) 24. Qxf5 $1 {[%emt 0:00:16]} Rxf5 {[%emt 0:00:01]} 25. g4 {[%emt 0:00:04]} Rfe5 {[%emt 0:00:26]} (25... Rxg5 26. Bxg5 Nde7 27. Bxe7 Nxe7 28. cxb4 Rf8) 26. Nf7+ {[%emt 0:00:04] White is clearly winning.} Kg8 {[%emt 0:00:02]} 27. Nxe5 {[%emt 0:00:04]} Rxe5 {[%emt 0:00:00]} 28. f4 {[%emt 0:00:06]} Rxe3 {[%emt 0:00:03]} 29. Bxd5+ {[%emt 0:00:02]} Kf8 {[%emt 0:00:01]} 30. Rxe3 {[%emt 0:00:04]} Bc5 {[%emt 0:00:01]} 31. Kf2 {[%emt 0:00:25] Weighted Error Value: White=0.16 (very precise) /Black=0.48} 1-0

[Event "CEZ Chess Trophy 2022"]
[Site "Prague"]
[Date "2022.05.31"]
[Round "2.1"]
[White "Narayanan.S.L"]
[Black "Navara, David"]
[Result "1-0"]
[ECO "D85"]
[WhiteElo "2662"]
[BlackElo "2682"]
[Annotator "TA"]
[PlyCount "69"]
[EventDate "2022.05.31"]
[EventType "match"]
[EventCountry "CZE"]
[SourceTitle "playchess.com"]
[Source "ChessBase"]
[SourceQuality "1"]
[TimeControl "900+10"]

{[%evp 13,69,13,11,8,11,15,23,3,15,4,4,8,33,10,43,17,66,65,64,28,36,37,45,16,71,39,25,10,158,152,144,43,28,17,545,542,1100,1087,1098,1098,1072,1109,1067,988,1529,854,837,829,29973,29974,29974,29975,29975,29976,29986,29987,29986,29987]} 1. d4 {[%emt 0:00:10]} Nf6 {[%emt 0:00:02]} 2. c4 {[%emt 0:00:00]} g6 {[%emt 0:00:03]} 3. Nc3 {[%emt 0:00:00]} d5 {[%emt 0:00:01]} 4. cxd5 {[%emt 0:00:00]} Nxd5 {[%emt 0:00:02]} 5. e4 {[%emt 0:00:00]} Nxc3 {[%emt 0:00:02]} 6. bxc3 {[%emt 0:00:00]} Bg7 {[%emt 0:00:05]} 7. Qa4+ {[%emt 0:00:00] 7.Nf3 is becoming the main line.} Nd7 {[%emt 0:00:07]} 8. Nf3 {[%emt 0:00:01][%cal Bg1f3,Bf3d2,Bd2c4][%mdl 32] D85: Exchange Grünfeld: Unusual White 7th moves and lines with 7 Nf3.} c5 {[%emt 0:00:10]} 9. Qa3 $5 {[%emt 0:00:24][%mdl 4] An interesting side line.} O-O {[%emt 0:00:39]} 10. h4 $5 {[%emt 0:00:02][%mdl 4] White has an edge. An interesting side line.} e5 {[%emt 0:01:18][%cal Re5d4]} 11. Bg5 {[%emt 0:00:15] [#]} (11. dxc5 Nf6) 11... Qc7 $146 {[%emt 0:00:23][%cal Re5d4]} ({Predecessor:} 11... Qe8 12. dxc5 h6 13. Be3 Nf6 14. h5 Nxh5 15. Bc4 Nf4 16. O-O-O Be6 17. Qb3 Rc8 {½-½ (68) Bernadskiy,V (2611)-Ivic,V (2603) Vrnjacka Banja 2021}) 12. d5 {[%emt 0:00:04]} Nf6 {[%emt 0:00:52]} (12... h6 $5 {[%cal Rh6g5]} 13. Be3 f5 $11) 13. Nd2 {[%emt 0:01:00]} b6 {[%emt 0:01:52]} 14. Bb5 {[%emt 0:02:27]} (14. Bxf6 $5 Bxf6 15. Rb1 $11) 14... Bd7 {[%emt 0:00:11]} (14... Nh5 $11 {deserves consideration.}) 15. Bxf6 $14 {[%emt 0:01:26]} Bxf6 {[%emt 0:00:21]} 16. Qa4 {[%emt 0:00:52]} Bg4 {[%emt 0:02:15]} 17. Bc6 {[%emt 0:00:48]} Rab8 {[%emt 0:00:02]} 18. Nc4 {[%emt 0:00:51][%cal Oh4h5]} Be7 {[%emt 0:03:02]} (18... h5 $11 {keeps the balance.}) 19. f3 $16 {[%emt 0:01:19]} Bc8 {[%emt 0:00:03]} 20. Rd1 {[%emt 0:00:14] Strongly threatening d6.} Qd8 {[%emt 0:00:20]} (20... a6 $11 {remains equal.}) 21. Qxa7 {[%emt 0:01:05]} Bxh4+ {[%emt 0:00:05]} 22. Kf1 {[%emt 0:00:29]} (22. Ke2 $16) 22... Qg5 $1 $14 {[%emt 0:00:30][%cal Of7f5]} 23. Kg1 $36 {[%emt 0:03:28][%mdl 2048] White has some pressure.} (23. Qxb8 $2 Ba6 24. Qxf8+ (24. Qxb6 Qe3 25. g3 Qxf3+ 26. Ke1 Bxc4 27. Kd2 Qg2+ 28. Kc1 Bg5+) 24... Kxf8 $19) (23. Bb5 $5 {[%cal Ra7b8]} Qg3 24. Rxh4 Qxh4 25. Qxb8 Qh1+ 26. Ke2 Qxg2+ 27. Ke3 $16) 23... b5 $2 {[%emt 0:00:38][%mdl 8192] Loses the game.} 24. Qxb8 {[%emt 0:00:47]} Bh3 {[%emt 0:00:17][%csl Gh3][%cal Rg5g2] [#]} 25. Qxf8+ $3 {[%emt 0:00:06]} Kxf8 {[%emt 0:00:02]} 26. Rxh3 {[%emt 0:00:02] Active counter play!} bxc4 {[%emt 0:00:03] [#]} 27. Rxh4 $1 {[%emt 0:00:12][%mdl 512]} Qxh4 $18 {[%emt 0:00:27][%mdl 4096] Endgame KQ-KRB} 28. d6 {[%emt 0:00:01]} h5 {[%emt 0:00:22]} 29. d7 {[%emt 0:00:04]} Qd8 {[%emt 0:00:02]} 30. a4 {[%emt 0:00:06][%cal Ba2a4,Ba4a5,Ba5a6][%mdl 32] aiming for a5!} h4 {[%emt 0:00:02]} 31. a5 {[%emt 0:00:11] White mates.} Kg7 {[%emt 0:00:30]} 32. a6 {[%emt 0:00:15]} h3 {[%emt 0:00:02]} 33. g3 {[%emt 0:00:31]} ({Weaker is} 33. a7 Qg5 34. Kf2 (34. g4 Qe3+ 35. Kh2 Qf4+ 36. Kxh3 Qxf3+ 37. Kh2 Qf2+ 38. Kh3 Qf3+ 39. Kh2 Qf2+ 40. Kh3 Qf3+ $11) 34... Qxg2+ 35. Ke3 Qg5+ 36. Kf2 (36. Ke2 Qg2+ 37. Ke3 Qg5+ 38. Kf2 Qg2+ 39. Ke3 $11) 36... Qg2+ 37. Ke3 Qg5+ 38. Kf2 (38. Ke2 Qg2+ 39. Ke3 $11) 38... Qg2+ $11) 33... Qg5 {[%emt 0:00:38]} 34. Kh2 {[%emt 0:00:10]} ({Not} 34. d8=Q $2 Qxg3+ 35. Kf1 Qg2+ 36. Ke1 h2 $19) 34... Qe3 {[%emt 0:00:26]} 35. d8=Q {[%emt 0:00:10] Weighted Error Value: White=0.12 (very precise) /Black=0.68} 1-0

[Event "CEZ Chess Trophy 2022"]
[Site "Prague"]
[Date "2022.05.31"]
[Round "3.1"]
[White "Navara, David"]
[Black "Narayanan.S.L"]
[Result "1/2-1/2"]
[ECO "C54"]
[WhiteElo "2682"]
[BlackElo "2662"]
[Annotator "TA"]
[PlyCount "211"]
[EventDate "2022.05.31"]
[EventType "match"]
[EventCountry "CZE"]
[SourceTitle "playchess.com"]
[Source "ChessBase"]
[SourceQuality "1"]
[TimeControl "900+10"]

{[%evp 10,211,20,2,17,11,13,9,10,12,26,18,17,21,20,7,0,12,14,21,31,0,0,0,23,20,42,40,47,33,39,31,39,39,36,24,53,32,62,50,33,0,27,0,0,0,0,0,0,0,0,0,0,0,0,0,0,0,1,0,0,0,0,0,0,0,0,0,0,0,0,0,0,0,0,0,0,0,0,0,0,0,0,0,0,0,0,0,0,0,0,0,0,0,0,0,0,0,0,0,0,0,0,0,0,0,0,0,0,0,0,0,0,0,0,0,0,0,0,0,0,0,0,0,0,0,0,0,0,0,0,0,0,0,0,0,0,0,0,0,0,0,0,0,0,0,0,0,0,0,0,0,0,0,0,0,0,0,0,0,0,0,0,0,0,0,0,0,0,0,0,0,0,0,0,0,0,0,0,0,0,0,0,0,0,0,0,0,0,0,0,0,0,0,0,0,0,0,0,0,0,0,0,0]} 1. e4 {[%emt 0:00:12]} e5 {[%emt 0:00:05]} 2. Nf3 {[%emt 0:00:00]} Nc6 {[%emt 0:00:01]} 3. Bc4 {[%emt 0:00:00]} Bc5 {[%emt 0:00:01]} 4. c3 {[%emt 0:00:00]} Nf6 {[%emt 0:00:01]} 5. d3 {[%emt 0:00:00]} O-O {[%emt 0:00:02]} 6. Bg5 {[%emt 0:00:00]} h6 {[%emt 0:00:02] C54: Giuoco Piano: 4 c3 Nf6, main lines with 5 d4 and 5 d3.} 7. Bh4 {[%emt 0:00:00]} Be7 {[%emt 0:00:02]} 8. Bg3 {[%emt 0:00:12]} d6 {[%emt 0:00:01]} 9. a4 {[%emt 0:01:33] 9.a4 is the recent fashion.} Kh8 {[%emt 0:00:02]} 10. a5 {[%emt 0:00:53]} a6 {[%emt 0:00:03]} 11. Nbd2 {[%emt 0:00:13] [#]} Ng8 $146 {[%emt 0:00:14]} ({Predecessor:} 11... Nh7 12. Qb3 f5 13. exf5 Rxf5 14. Nf1 e4 15. dxe4 Rxa5 16. Rd1 Bf6 17. Ne3 Qe8 18. O-O Rc5 19. Qa2 Qxe4 20. Rfe1 Bd7 21. b4 Rh5 22. Bd5 {1-0 (22) Sadhwani,R (2628)-De Wachter,M (2295) Reykjavik 2022}) 12. d4 {[%emt 0:01:11][%cal Rd4e5]} f5 {[%emt 0:00:15] [#] Hoping for ...fxe4.} 13. d5 {[%emt 0:02:48]} (13. dxe5 $2 f4 14. exd6 cxd6 15. Bxg8 Kxg8 $17) 13... Nb8 {[%emt 0:00:09] aiming for ...f4.} 14. exf5 {[%emt 0:00:40]} Bxf5 {[%emt 0:00:03]} 15. Qe2 {[%emt 0:01:17]} Nf6 {[%emt 0:00:40]} 16. Bd3 {[%emt 0:00:25]} ({Of course not} 16. Nh4 Bh7 17. O-O e4 $15) 16... Bxd3 {[%emt 0:04:09]} ({Resist} 16... Nxd5 17. Bxf5 Rxf5 18. Qe4 Rxf3 19. Nxf3 $16 (19. Qxf3 Qg8 $16)) 17. Qxd3 {[%emt 0:00:02]} Nbd7 {[%emt 0:00:47]} 18. Nh4 {[%emt 0:00:08]} Rf7 {[%emt 0:00:02]} 19. Ng6+ {[%emt 0:00:38]} Kg8 {[%emt 0:00:02]} 20. O-O {[%emt 0:01:01]} Nf8 {[%emt 0:00:58]} 21. Nxf8 {[%emt 0:01:11]} Rxf8 {[%emt 0:00:36]} 22. c4 {[%emt 0:00:30]} Qd7 {[%emt 0:00:02]} 23. b4 {[%emt 0:00:22]} Kh8 {[%emt 0:01:09]} 24. f3 {[%emt 0:01:11]} c6 {[%emt 0:00:15]} 25. Ne4 {[%emt 0:00:13]} Rac8 {[%emt 0:00:11][%cal Ba8c8,Bc8c4,Bc4a4][%mdl 32]} 26. Rad1 {[%emt 0:00:29]} (26. dxc6 {with more complications.} Qxc6 27. Nd2 Nh5 28. b5) 26... cxd5 {[%emt 0:00:34] The position is equal.} 27. Nxf6 {[%emt 0:00:05]} Bxf6 {[%emt 0:00:17]} 28. Qxd5 {[%emt 0:00:11] Black must now prevent c5.} Qc6 {[%emt 0:00:09] Inhibits c5.} 29. b5 {[%emt 0:00:55]} Qxc4 {[%emt 0:00:11]} 30. Qxc4 {[%emt 0:00:08]} Rxc4 {[%emt 0:00:02]} 31. bxa6 {[%emt 0:00:02]} bxa6 {[%emt 0:00:01]} 32. Rxd6 {[%emt 0:00:03]} Ra4 {[%emt 0:02:02]} 33. Rxa6 {[%emt 0:00:09]} Rc8 {[%emt 0:00:02]} 34. h4 {[%emt 0:02:14]} Rc5 {[%emt 0:00:37]} 35. Ra8+ {[%emt 0:00:21]} Kh7 {[%emt 0:00:04]} 36. a6 {[%emt 0:00:01]} Rca5 {[%emt 0:00:03]} 37. h5 {[%emt 0:00:26]} Rxa6 {[%emt 0:00:06]} 38. Rxa6 {[%emt 0:00:08]} Rxa6 $11 {[%emt 0:00:02][%mdl 4096] Endgame KRB-KRB} 39. Re1 {[%emt 0:00:02]} Ra5 {[%emt 0:00:08]} 40. Re4 {[%emt 0:00:02]} Kg8 {[%emt 0:00:04]} 41. Kh2 {[%emt 0:00:06]} Kf7 {[%emt 0:00:04]} 42. Kh3 {[%emt 0:00:07]} Rd5 {[%emt 0:00:16]} 43. Bf2 {[%emt 0:00:26]} g6 {[%emt 0:00:13]} 44. g4 {[%emt 0:00:43]} Bg5 {[%emt 0:00:40]} 45. Bg3 {[%emt 0:00:12]} gxh5 {[%emt 0:00:22]} 46. gxh5 {[%emt 0:00:08]} Ke6 {[%emt 0:00:10]} 47. Kg4 {[%emt 0:00:26]} Rd4 {[%emt 0:00:21]} 48. Bh2 {[%emt 0:00:17]} Rxe4+ {[%emt 0:01:05]} 49. fxe4 {[%emt 0:00:02] KB-KB} Be3 {[%emt 0:00:02]} 50. Bg3 {[%emt 0:00:04]} Bg5 {[%emt 0:00:05]} 51. Be1 {[%emt 0:00:25]} Kf6 {[%emt 0:00:21]} 52. Ba5 {[%emt 0:00:10]} Bc1 {[%emt 0:00:45]} 53. Bd8+ {[%emt 0:00:14]} Ke6 {[%emt 0:00:03]} 54. Kf3 {[%emt 0:00:01]} Bg5 {[%emt 0:00:59]} 55. Bc7 {[%emt 0:00:02]} Be7 {[%emt 0:00:07]} 56. Ba5 {[%emt 0:00:11]} Bg5 {[%emt 0:00:04]} 57. Ke2 {[%emt 0:00:02]} Bf4 {[%emt 0:00:25]} 58. Kd3 {[%emt 0:00:03]} Kd6 {[%emt 0:00:33]} 59. Kc4 {[%emt 0:00:09]} Kc6 {[%emt 0:00:01]} 60. Bc3 {[%emt 0:00:59]} Bg3 {[%emt 0:00:14]} 61. Bb4 {[%emt 0:00:09]} Bf4 {[%emt 0:00:06]} 62. Bc5 {[%emt 0:00:16]} Bg5 {[%emt 0:00:05]} 63. Bf8 {[%emt 0:00:02]} Bc1 {[%emt 0:00:47]} 64. Be7 {[%emt 0:00:03]} Bf4 {[%emt 0:00:10]} 65. Bf6 {[%emt 0:00:02]} Bg3 {[%emt 0:00:07]} 66. Kb4 {[%emt 0:00:19]} Be1+ {[%emt 0:00:13]} 67. Kb3 {[%emt 0:00:02]} Bg3 $1 {[%emt 0:00:05]} 68. Bg7 {[%emt 0:00:07]} Bf4 {[%emt 0:00:02]} 69. Kc4 {[%emt 0:00:01]} Kd6 {[%emt 0:00:09]} 70. Kb5 {[%emt 0:00:02]} Be3 {[%emt 0:00:29]} 71. Bf8+ {[%emt 0:00:06]} Ke6 {[%emt 0:00:23]} 72. Kc6 {[%emt 0:00:49]} Bd2 {[%emt 0:00:08]} 73. Bd6 {[%emt 0:00:22]} Bc3 {[%emt 0:00:23]} 74. Bf8 {[%emt 0:00:02]} Bd2 {[%emt 0:00:02]} 75. Bg7 {[%emt 0:00:01]} Bf4 {[%emt 0:01:10]} 76. Kc7 {[%emt 0:00:24]} Ke7 {[%emt 0:00:09]} (76... Kf7 $5 77. Bh8 Ke7 $11) 77. Kc6 {[%emt 0:00:05]} Ke6 {[%emt 0:00:01]} 78. Bf8 {[%emt 0:00:01]} Bd2 {[%emt 0:00:03]} 79. Bd6 {[%emt 0:00:26]} Bc3 {[%emt 0:00:37]} 80. Bc7 {[%emt 0:00:15]} Bd4 {[%emt 0:00:55]} 81. Ba5 {[%emt 0:00:07]} Be3 {[%emt 0:00:07] Inhibits Bd2.} 82. Kc7 {[%emt 0:00:12]} Bf4 {[%emt 0:00:26]} 83. Kc8 {[%emt 0:00:12]} Bg5 {[%emt 0:00:36]} 84. Bb4 {[%emt 0:00:07]} Bf4 {[%emt 0:00:39]} 85. Kd8 {[%emt 0:00:02]} Kf6 {[%emt 0:00:11] [#] And now ...Kg5 would win.} 86. Be7+ {[%emt 0:00:03]} Kf7 {[%emt 0:00:09]} 87. Kd7 {[%emt 0:00:02]} Bg5 {[%emt 0:00:24]} 88. Bb4 {[%emt 0:00:35]} Be3 {[%emt 0:00:00]} 89. Kd6 {[%emt 0:00:11]} Kf6 {[%emt 0:00:00]} 90. Ba5 {[%emt 0:00:10] Threatens to win with Bd8+.} Bf4 {[%emt 0:00:14]} 91. Bd8+ {[%emt 0:00:10]} Kf7 {[%emt 0:00:01]} 92. Kd5 {[%emt 0:00:06]} Bg3 {[%emt 0:00:03]} 93. Bb6 {[%emt 0:00:07]} Bf4 {[%emt 0:00:02]} 94. Bf2 {[%emt 0:00:09]} Kf6 {[%emt 0:00:04]} 95. Bh4+ {[%emt 0:00:12]} Bg5 {[%emt 0:00:06]} 96. Bg3 {[%emt 0:00:03]} Bf4 {[%emt 0:00:01]} 97. Bxf4 {[%emt 0:00:18]} exf4 {[%emt 0:00:02] KPP-KPP} 98. e5+ {[%emt 0:00:01]} Kg5 $1 {[%emt 0:00:24]} 99. e6 {[%emt 0:00:16] e7 is the strong threat.} f3 $1 {[%emt 0:00:02]} 100. e7 {[%emt 0:00:01]} f2 {[%emt 0:00:01]} 101. e8=Q {[%emt 0:00:03]} f1=Q {[%emt 0:00:02] Inhibits Qf7.} 102. Qg6+ {[%emt 0:00:05]} Kh4 {[%emt 0:00:02]} 103. Qxh6 {[%emt 0:00:09]} Qf5+ {[%emt 0:00:02]} 104. Kd4 {[%emt 0:00:03]} Qxh5 {[%emt 0:00:02]} 105. Qxh5+ {[%emt 0:00:04]} Kxh5 {[%emt 0:00:02]} 106. Ke4 {[%emt 0:00:13] Weighted Error Value: White=0.04 (flawless) /Black=0.04 (flawless)} 1/2-1/2

[Event "CEZ Chess Trophy 2022"]
[Site "Prague"]
[Date "2022.06.01"]
[Round "4.1"]
[White "Narayanan.S.L"]
[Black "Navara, David"]
[Result "1-0"]
[ECO "D11"]
[WhiteElo "2662"]
[BlackElo "2682"]
[Annotator "TA"]
[PlyCount "81"]
[EventDate "2022.05.31"]
[EventType "match"]
[EventCountry "CZE"]
[SourceTitle "playchess.com"]
[Source "ChessBase"]
[SourceQuality "1"]
[TimeControl "900+10"]

{[%evp 9,81,5,8,20,19,-8,0,-5,32,16,4,-33,-36,-35,-35,-38,-49,-28,-5,-37,-35,-31,-29,-69,-29,-41,-41,-49,-27,-39,0,0,0,0,0,0,0,0,0,-10,16,11,13,12,59,75,126,67,164,161,183,189,717,720,717,710,674,673,616,576,4638,4638,1248,1227,1227,808,29982,29983,29983,29984,29984,29985,29985,394]} 1. Nf3 {[%emt 0:00:04]} d5 {[%emt 0:00:03]} 2. d4 {[%emt 0:00:01]} Nf6 {[%emt 0:00:02]} 3. c4 {[%emt 0:00:02]} c6 {[%emt 0:00:03]} 4. Nbd2 {[%emt 0:00:10]} Bf5 {[%emt 0:00:05]} 5. Nh4 {[%emt 0:00:03]} Be6 {[%emt 0:00:01]} 6. e3 {[%emt 0:00:01] D11: Slav Defence: 3 Nf3 sidelines and 3...Nf6 4 e3 Bg4.} g5 {[%emt 0:01:02]} 7. Nhf3 {[%emt 0:00:02]} g4 {[%emt 0:00:02]} 8. Nh4 $5 {[%emt 0:00:53][%mdl 4] [#] The position is equal. Leaves trodden paths.} Bg7 $146 {[%emt 0:01:08]} ({Predecessor:} 8... h5 9. Qc2 Bh6 10. Nf5 Bxf5 11. Qxf5 e6 12. Qc2 Nbd7 13. b3 Qc7 14. Be2 O-O-O {½-½ (32) Antoniewski,R (2493)-Paszewski,M (2282) Szklarska Poreba 2021}) 9. Qc2 {[%emt 0:01:05]} c5 {[%emt 0:01:48]} 10. cxd5 {[%emt 0:01:52]} Qxd5 {[%emt 0:02:16]} 11. Bc4 {[%emt 0:01:35]} Qh5 {[%emt 0:00:08]} 12. Bxe6 {[%emt 0:00:28]} fxe6 {[%emt 0:00:03]} 13. g3 {[%emt 0:00:03]} cxd4 {[%emt 0:01:02]} 14. exd4 {[%emt 0:00:16]} Nc6 {[%emt 0:00:16]} 15. Nb3 {[%emt 0:01:06]} Qb5 {[%emt 0:01:10]} 16. Qe2 {[%emt 0:02:11]} Qxe2+ {[%emt 0:00:12]} 17. Kxe2 {[%emt 0:00:01]} Nd5 {[%emt 0:00:20]} 18. Be3 {[%emt 0:00:06]} O-O {[%emt 0:00:35]} 19. Rac1 {[%emt 0:01:25]} e5 {[%emt 0:00:51]} 20. dxe5 {[%emt 0:00:15]} Bxe5 {[%emt 0:01:08]} 21. Rhd1 {[%emt 0:00:21]} Nxe3 {[%emt 0:00:23]} 22. fxe3 {[%emt 0:00:03]} Bxb2 {[%emt 0:00:53]} 23. Rc4 {[%emt 0:00:03]} Ne5 {[%emt 0:02:26]} 24. Rc7 {[%emt 0:00:34]} (24. Re4 $5 {[%cal Rd1b1]}) 24... Ba3 {[%emt 0:01:40]} 25. Rxb7 {[%emt 0:00:18]} a5 {[%emt 0:00:40]} 26. Rd5 {[%emt 0:00:19]} Nf3 {[%emt 0:00:02]} (26... Bd6 $11 {is more appropriate.}) 27. Nf5 $14 {[%emt 0:01:06]} (27. Nxa5 Rac8 $11) (27. Rxa5 Nxh4 28. gxh4 Bd6 $11) 27... Nxh2 {[%emt 0:00:38]} ({Black should try} 27... a4) 28. Nc5 {[%emt 0:00:44] Active counter play!} (28. Nxe7+ $16 Bxe7 29. Rxe7) 28... Bxc5 {[%emt 0:00:19]} (28... Nf3 $14) 29. Rxc5 $18 {[%emt 0:00:02]} Nf1 {[%emt 0:00:15][%cal Of8f5] [#] Threatens to win with ...Rxf5!} 30. e4 {[%emt 0:00:35]} ({But not} 30. Kxf1 $6 e6 $14) (30. Nxe7+ Kh8 $15) 30... e6 $2 {[%emt 0:00:23]} (30... Rxf5 31. exf5 Nxg3+ 32. Ke3 Kf7) 31. Nh6+ {[%emt 0:01:22]} ({Stronger than} 31. Kxf1 exf5 32. Rcc7 (32. Rxf5 a4 $15) (32. exf5 Rad8 $11) 32... fxe4+ 33. Ke1 Rf3 $11) 31... Kh8 {[%emt 0:00:01]} 32. Nf7+ {[%emt 0:00:16]} Rxf7 {[%emt 0:00:14]} 33. Rxf7 {[%emt 0:00:01]} Nxg3+ {[%emt 0:00:03][%mdl 4096] Endgame KRR-KRN} 34. Ke3 {[%emt 0:00:02] [#] Black must now prevent Rcc7.} Rg8 {[%emt 0:00:26]} 35. Rcc7 {[%emt 0:00:04][%csl Gc7][%cal Rf7h7]} Rg6 {[%emt 0:00:03]} 36. Rxh7+ {[%emt 0:00:02]} Kg8 {[%emt 0:00:01]} 37. Rhd7 {[%emt 0:00:02][%cal Rc7c8]} Nf1+ {[%emt 0:00:17]} 38. Ke2 {[%emt 0:00:09][%cal Rd7d8] White mates.} Ng3+ {[%emt 0:00:01]} 39. Kf2 {[%emt 0:00:03][%cal Rc7c8]} Nxe4+ {[%emt 0:00:08]} 40. Ke3 {[%emt 0:00:01][%cal Rc7c8]} Kh8 {[%emt 0:00:25]} 41. Rd8+ $2 {[%emt 0:00:03] Weighted Error Value: White=0.07 (flawless) /Black=0.34} (41. Kxe4 {mates} g3 42. Kf3 a4 43. Ra7 g2 44. Rd8+ Rg8 45. Rxg8+ Kxg8 46. Kxg2) 1-0